lending/lending_fUSD_20260222
["ID","MTS","AMOUNT","RATE_DAILY","PERIOD"]
[406322920,1771737048643,-150.0,0.000444,120]
[406322921,1771737048654,-150.0,0.000444,120]
[406322922,1771737048665,-150.0,0.000444,120]
[406322923,1771737048674,-150.0,0.000444,120]
[406322924,1771737048683,-1000.0,0.00044433,14]
[406322925,1771737048693,-150.0,0.00044452,14]
[406322926,1771737048701,-43901.9521043,0.0004446,2]
[406322927,1771737048710,-1000.0,0.00044461,14]
[406322928,1771737048719,-1000.0,0.00044461,14]
[406322929,1771737048728,-520.56643815,0.000445,120]
[406322930,1771737048737,-151.0,0.000445,120]
[406322931,1771737048747,-300.0,0.000445,16]
[406322932,1771737048756,-500.0,0.00044521,60]
[406322933,1771737048766,-500.0,0.00044521,60]
[406322934,1771737048775,-1000.0,0.00044564,14]
[406322935,1771737048784,-1000.0,0.00044591,14]
[406322936,1771737048794,-300.0,0.000446,16]
[406322937,1771737048803,-152.87244671,0.00044618,14]
[406322938,1771737048812,-1000.0,0.00044618,14]
[406322939,1771737048821,-1000.0,0.00044623,14]
[406322940,1771737048830,-1000.0,0.00044625,14]
[406322941,1771737048839,-150.0,0.00044673,14]
[406322942,1771737048848,-1000.0,0.0004468,14]
[406322943,1771737048858,-198.9,0.000447,30]
[406322944,1771737048867,-200.0,0.000447,5]
[406322945,1771737048876,-200.0,0.000447,3]
[406322946,1771737048887,-300.0,0.000447,16]
[406322947,1771737048896,-1000.0,0.00044725,14]
[406322948,1771737048906,-519.09027087,0.00044728,2]
[406322949,1771737048916,-150.0,0.00044734,14]
[406322950,1771737048929,-1000.0,0.00044734,14]
[406322951,1771737048938,-1000.0,0.00044743,14]
[406322952,1771737048947,-179.83,0.00044752,2]
[406322953,1771737048958,-300.221211,0.00044769,120]
[406322954,1771737048968,-1000.0,0.00044773,14]
[406322955,1771737048977,-1000.0,0.00044778,14]
[406322956,1771737048986,-1000.0,0.00044794,14]
[406322957,1771737048996,-896.0,0.000448,16]
[406322958,1771737049006,-1000.0,0.00044806,14]
[406322959,1771737049016,-394.0,0.00044818,2]
[406322960,1771737049030,-3665.75228715,0.00044819,30]
[406322961,1771737049041,-439.24303689,0.00044846,14]
[406322962,1771737049050,-394.0,0.00044859,2]
[406322963,1771737049060,-150.0,0.00044873,10]
[406322964,1771737049070,-1000.0,0.00044874,14]
[406322965,1771737049081,-1000.0,0.00044877,14]
[406322966,1771737049092,-394.0,0.00044887,2]
[406322967,1771737049102,-223.68,0.0004492,14]
[406322968,1771737049112,-5566.99669804,0.00044925,2]
[406322969,1771737049121,-150.0,0.00044932,2]
[406322970,1771737049131,-5566.99669804,0.00044968,2]
[406322971,1771737049140,-1494.98484332,0.00044968,2]
[406322972,1771737049151,-500.0,0.00044973,10]
[406322973,1771737049162,-394.0,0.00044974,2]
[406322974,1771737049171,-336.96741548,0.00044989,28]
[406322975,1771737049180,-811.73,0.00044989,2]
[406322976,1771737049189,-150.0,0.00045,10]
[406322977,1771737049198,-479.0,0.00045,60]
[406322978,1771737049207,-320.88850491,0.00045,60]
[406322979,1771737049216,-789.0,0.00045,60]
[406322980,1771737049226,-789.0,0.00045,60]
[406322981,1771737049235,-789.0,0.00045,60]
[406322982,1771737049245,-150.0,0.00045,2]
[406322983,1771737049254,-240.70827668,0.00045,2]
[406322984,1771737049263,-59811.0,0.00045,60]
[406322985,1771737049272,-2000.0,0.00045,120]
[406322986,1771737049281,-189.72,0.00045,51]
[406322987,1771737049295,-277.700672,0.00045,27]
[406322988,1771737049304,-1928.91908403,0.0004501,120]
[406322989,1771737049313,-276.09510371,0.0004501,15]
[406322990,1771737049322,-8159.95281298,0.0004501,15]
[406322991,1771737049331,-5566.99669804,0.0004501,2]
[406322992,1771737049340,-180.02098754,0.0004501,30]
[406322993,1771737049349,-7547.3116057,0.00045013,15]
[406322994,1771737049359,-2212.11126167,0.00045018,110]
[406322995,1771737049368,-500.0,0.00045024,100]
[406322996,1771737049378,-500.0,0.00045024,100]
[406322997,1771737049388,-205.87,0.00045024,100]
[406322998,1771737049398,-183379.5984271,0.00045025,2]
[406322999,1771737049408,-91689.7992135,0.00045025,2]
[406323000,1771737049418,-500.0,0.00045068,120]
[406323001,1771737049427,-500.0,0.00045068,120]
[406323002,1771737049436,-500.0,0.00045068,120]
[406323003,1771737049446,-500.0,0.00045068,120]
[406323004,1771737049455,-533.26191983,0.00045068,120]
[406323005,1771737049465,-265.84867841,0.00045069,2]
[406323006,1771737049476,-277.21117915,0.00045069,120]
[406323007,1771737049486,-500.0,0.00045069,120]
[406323008,1771737049496,-500.0,0.00045069,120]
[406323009,1771737049507,-500.0,0.00045069,120]
[406323010,1771737049516,-500.0,0.00045069,120]
[406323011,1771737049526,-500.0,0.00045069,120]
[406323012,1771737049535,-500.0,0.00045069,120]
[406323013,1771737049547,-500.0,0.00045069,120]
[406323014,1771737049557,-500.0,0.00045069,120]
[406323015,1771737049567,-500.0,0.00045069,120]
[406323016,1771737049577,-500.0,0.00045069,120]
[406323017,1771737049587,-500.0,0.00045069,120]
[406323018,1771737049597,-500.0,0.00045069,120]
[406323019,1771737049608,-500.0,0.00045069,120]
[406323020,1771737049617,-500.0,0.00045069,120]
[406323021,1771737049627,-500.0,0.00045069,120]
[406323022,1771737049636,-500.0,0.00045069,120]
[406323023,1771737049647,-500.0,0.00045069,120]
[406323024,1771737049656,-546.32,0.00045069,120]
[406323025,1771737049665,-270.96714461,0.00045069,120]
[406323026,1771737049675,-500.0,0.00045069,120]
[406323027,1771737049684,-500.0,0.00045069,120]
[406323028,1771737049694,-500.0,0.00045069,120]
[406323029,1771737049710,-500.0,0.00045069,120]
[406323030,1771737049721,-500.0,0.00045069,120]
[406323031,1771737049731,-500.0,0.00045069,120]
[406323032,1771737049741,-500.0,0.00045069,120]
[406323033,1771737049751,-500.0,0.00045069,120]
[406323034,1771737049761,-500.0,0.00045069,120]
[406323035,1771737049893,-500.0,0.00045069,120]
[406323036,1771737049903,-500.0,0.00045069,120]
[406323037,1771737049913,-500.0,0.00045069,120]
[406323038,1771737049922,-500.0,0.00045069,120]
[406323039,1771737049931,-548.07514353,0.00045069,120]
[406323040,1771737049940,-500.0,0.00045069,120]
[406323041,1771737049949,-500.0,0.00045069,120]
[406323042,1771737049959,-500.0,0.00045069,120]
[406323043,1771737049968,-500.0,0.00045069,120]
[406323044,1771737049978,-500.0,0.00045069,120]
[406323045,1771737049987,-500.0,0.00045069,120]
[406323046,1771737049996,-500.0,0.00045069,120]
[406323047,1771737050005,-500.0,0.00045069,120]
[406323048,1771737050014,-567.03854524,0.00045069,120]
[406323049,1771737050023,-500.0,0.00045069,120]
[406323050,1771737050033,-375.25409668,0.00045069,120]
[406323051,1771737050041,-515.44030736,0.00045069,120]
[406323052,1771737050051,-524.07247356,0.00045069,120]
[406323053,1771737050059,-500.0,0.00045069,120]
[406323054,1771737050068,-500.0,0.00045069,120]
[406323055,1771737050076,-500.0,0.00045069,120]
[406323056,1771737050086,-464.71106113,0.00045069,120]
[406323057,1771737050095,-294.76907495,0.00045069,120]
[406323058,1771737050104,-500.0,0.00045069,120]
[406323059,1771737050112,-500.0,0.00045069,120]
[406323060,1771737050122,-500.0,0.00045069,120]
[406323061,1771737050131,-500.0,0.00045069,120]
[406323062,1771737050141,-500.0,0.00045069,120]
[406323063,1771737050152,-500.0,0.00045069,120]
[406323064,1771737050163,-177.89324504,0.00045069,120]
[406323065,1771737050172,-500.0,0.00045069,120]
[406323066,1771737050183,-500.0,0.00045069,120]
[406323067,1771737050195,-500.0,0.00045069,120]
[406323068,1771737050205,-500.0,0.00045069,120]
[406323069,1771737050214,-500.0,0.00045069,120]
[406323070,1771737050225,-511.81753978,0.00045069,120]
[406323071,1771737050234,-500.0,0.00045069,120]
[406323072,1771737050243,-500.0,0.00045069,120]
[406323073,1771737050253,-500.0,0.00045069,120]
[406323074,1771737050262,-500.0,0.00045069,120]
[406323075,1771737050271,-500.0,0.00045069,120]
[406323076,1771737050279,-396.00543029,0.00045069,120]
[406323077,1771737050288,-507.78630981,0.00045069,120]
[406323078,1771737050297,-574.14803292,0.00045069,120]
[406323079,1771737050306,-500.0,0.00045069,120]
[406323080,1771737050315,-500.0,0.00045069,120]
[406323081,1771737050324,-500.0,0.00045069,120]
[406323082,1771737050333,-500.0,0.00045069,120]
[406323083,1771737050342,-508.14529177,0.00045069,120]
[406323084,1771737050351,-500.0,0.00045069,120]
[406323085,1771737050360,-504.48152678,0.00045069,120]
[406323086,1771737050370,-500.0,0.00045069,120]
[406323087,1771737050379,-500.0,0.00045069,120]
[406323088,1771737050388,-206.28,0.00045069,120]
[406323089,1771737050397,-500.0,0.00045069,120]
[406323090,1771737050406,-500.0,0.00045069,120]
[406323091,1771737050414,-349.79589102,0.00045069,10]
[406323092,1771737050423,-161.7923025,0.00045069,120]
[406323093,1771737050433,-500.0,0.00045069,120]
[406323094,1771737050442,-500.0,0.00045069,120]
[406323095,1771737050450,-510.60523567,0.00045069,120]
[406323096,1771737050459,-500.0,0.00045069,120]
[406323097,1771737050468,-500.0,0.00045069,120]
[406323098,1771737050477,-500.0,0.00045069,120]
[406323099,1771737050486,-590.34,0.00045069,120]
[406323100,1771737050495,-530.34,0.00045069,120]
[406323101,1771737050504,-500.0,0.00045069,120]
[406323102,1771737050513,-500.0,0.00045069,120]
[406323103,1771737050522,-500.0,0.00045069,120]
[406323104,1771737050531,-500.0,0.00045069,120]
[406323105,1771737050540,-478.66739769,0.00045069,120]
[406323106,1771737050549,-512.97912671,0.00045069,120]
[406323107,1771737050558,-500.0,0.00045069,120]
[406323108,1771737050568,-630.51198584,0.00045069,120]
[406323109,1771737050577,-500.0,0.00045069,30]
[406323110,1771737050586,-500.0,0.00045069,30]
[406323111,1771737050595,-500.0,0.00045069,30]
[406323112,1771737050605,-500.0,0.00045069,30]
[406323113,1771737050615,-463.4906551,0.00045069,30]
[406323114,1771737050624,-200.0,0.0004507,10]
[406323115,1771737050633,-400.0,0.0004507,3]
[406323116,1771737050643,-400.0,0.0004507,3]
[406323117,1771737050653,-747.47656962,0.0004507,3]
[406323118,1771737050662,-300.0,0.0004507,3]
[406323119,1771737050670,-321.17621815,0.0004507,3]
[406323120,1771737050679,-500.0,0.00045074,120]
[406323121,1771737050688,-574.77,0.00045075,2]
[406323122,1771737050697,-574.77,0.00045075,2]
[406323123,1771737050706,-574.77,0.00045075,2]
[406323124,1771737050715,-574.77,0.00045075,2]
[406323125,1771737050724,-574.77,0.00045075,2]
[406323126,1771737050733,-574.77,0.00045075,2]
[406323127,1771737050742,-574.77,0.00045075,2]
[406323128,1771737050751,-574.77,0.00045075,2]
[406323129,1771737050760,-574.91580419,0.00045075,2]
[406323130,1771737050769,-500.0,0.00045075,120]
[406323131,1771737050778,-500.0,0.00045075,120]
[406323132,1771737050787,-500.0,0.00045075,120]
[406323133,1771737050796,-500.0,0.00045075,120]
[406323134,1771737050805,-500.0,0.00045075,120]
[406323135,1771737050814,-256.86452513,0.00045075,120]
[406323136,1771737050823,-500.0,0.00045083,30]
[406323137,1771737050832,-500.0,0.00045083,30]
[406323138,1771737050841,-500.0,0.00045083,30]
[406323139,1771737050850,-500.0,0.00045083,30]
[406323140,1771737050859,-500.0,0.00045083,30]
[406323141,1771737050868,-627.47385881,0.00045083,30]
[406323142,1771737050877,-500.0,0.00045083,30]
[406323143,1771737050886,-500.0,0.00045083,30]
[406323144,1771737050895,-500.0,0.00045083,30]
[406323145,1771737050904,-500.0,0.00045083,30]
[406323146,1771737050913,-500.0,0.00045083,30]
[406323147,1771737050923,-500.0,0.00045083,30]
[406323148,1771737050934,-500.0,0.00045083,30]
[406323149,1771737050944,-500.0,0.00045083,30]
[406323150,1771737050953,-177.34737629,0.00045083,30]
[406323151,1771737050962,-500.0,0.00045083,120]
[406323152,1771737050973,-500.0,0.00045083,120]
[406323153,1771737050982,-500.0,0.00045083,120]
[406323154,1771737050991,-500.0,0.00045083,120]
[406323155,1771737050999,-500.0,0.00045083,120]
[406323156,1771737051008,-500.0,0.00045083,120]
[406323157,1771737051017,-261.55017124,0.00045083,120]
[406323158,1771737051027,-500.0,0.00045083,45]
[406323159,1771737051035,-500.0,0.00045083,45]
[406323160,1771737051046,-500.0,0.00045083,120]
[406323161,1771737051056,-500.0,0.00045083,120]
[406323162,1771737051065,-500.0,0.00045083,120]
[406323163,1771737051074,-307.70291859,0.00045083,120]
[406323164,1771737051083,-201.93286099,0.00045083,30]
[406323165,1771737051092,-28019.51999398,0.00045083,6]
[406323166,1771737051102,-1106.0,0.00045084,30]
[406323167,1771737051111,-152.59,0.00045085,120]
[406323168,1771737051121,-6335.90147166,0.00045088,30]
[406323169,1771737051131,-6335.90147166,0.00045088,30]
[406323170,1771737051141,-6335.90147166,0.00045088,30]
[406323171,1771737051153,-6335.90147166,0.00045088,30]
[406323172,1771737051164,-187.02,0.000451,30]
[406323173,1771737051173,-150.43,0.000451,14]
[406323174,1771737051182,-5569.7,0.000451,2]
[406323175,1771737051192,-593.7997736,0.000451,7]
[406323176,1771737051202,-593.7997736,0.000451,7]
[406323177,1771737051211,-878.22231289,0.0004511,120]
[406323178,1771737051220,-12714.49123538,0.0004511,2]
[406323179,1771737051231,-7546.53870079,0.0004511,2]
[406323180,1771737051240,-204513.7468115,0.0004511,10]
[406323181,1771737051449,-307.5652725,0.00039786,2]
[406323182,1771737051459,-244.74944386,0.00040584,2]
[406323183,1771737051527,-55.25055614,0.00040584,2]
[406323184,1771737051536,-300.0,0.00040584,2]
[406323185,1771737051548,-300.0,0.00040584,2]
[406323186,1771737051557,-300.0,0.00040584,2]
[406323187,1771737051567,-307.56527245,0.00040831,2]
[406323188,1771737051578,-151.0,0.00041096,120]
[406323189,1771737051588,-151.0,0.00041096,120]
[406323190,1771737051598,-151.0,0.00041096,120]
[406323191,1771737051610,-151.0,0.00041096,120]
[406323192,1771737051619,-221.136577,0.00041096,120]
[406323193,1771737051628,-307.56527245,0.00041876,2]
[406323194,1771737051638,-151.0,0.000423,120]
[406323195,1771737051657,-151.0,0.00042409,55]
[406323196,1771737051667,-151.0,0.00042409,55]
[406323197,1771737051676,-151.0,0.00042409,55]
[406323198,1771737051686,-161.6795566,0.00042409,55]
[406323199,1771737051695,-151.0,0.00042409,55]
[406323200,1771737051706,-151.0,0.00042409,55]
[406323201,1771737051715,-151.0,0.00042409,55]
[406323202,1771737051724,-151.0,0.00042409,55]
[406323203,1771737051734,-151.0,0.00042409,55]
[406323204,1771737051743,-151.0,0.0004241,120]
[406323205,1771737051752,-307.56527245,0.0004292,2]
[406323206,1771737051761,-1494.98484331,0.00044989,2]
[406323207,1771737051771,-1177.62,0.00045,60]
[406323208,1771737051780,-189.13,0.00045,60]
[406323209,1771737051790,-1652.05366658,0.0004511,10]
[406323210,1771737076466,1111.2,0.000137,2]
[406323211,1771737142514,65323.42460212,0.00019,120]
[406323212,1771737142865,500.0,0.000108,2]
[406323213,1771737143308,500.0,0.000108,2]
[406323214,1771737146937,500.0,0.000108,2]
[406323215,1771737152586,500.0,0.000108,2]
[406323216,1771737154912,500.0,0.000108,2]
[406323217,1771737189205,5163.3,0.00018101,120]
[406323218,1771737204248,2038.6166988,0.000158,60]
[406323219,1771737436019,701.37580811,0.00013101,2]
[406323220,1771737436040,95.3711364,0.00013101,2]
[406323221,1771737441359,501.12265433,0.00013101,2]
[406323222,1771737448775,500.0,0.00013101,2]
[406323223,1771737450899,507.45253387,0.00013101,2]
[406323224,1771737451851,500.0,0.00013101,2]
[406323225,1771737452307,500.0,0.00013101,2]
[406323226,1771737452336,500.0,0.000108,2]
[406323227,1771737452774,500.0,0.00013101,2]
[406323228,1771737452916,670.0,0.00013101,2]
[406323229,1771737452946,502.83737335,0.00013101,2]
[406323230,1771737453247,223.21630205,0.00013101,2]
[406323231,1771737453269,276.78369795,0.00013101,2]
[406323232,1771737453296,500.0,0.000108,2]
[406323239,1771738232123,-250.0,0.00015,2]
[406323241,1771738232133,-515.0,0.00015101,2]
[406323243,1771738232142,-695.57662377,0.0001799,2]
[406323244,1771738232154,-931.89,0.0001799,2]
[406323245,1771738232164,-401.92896961,0.0001799,2]
[406323246,1771738232182,-520.49846645,0.0001799,2]
[406323247,1771738232192,-461.17361602,0.0001799,2]
[406323248,1771738232203,-2075.93354033,0.0001799,2]
[406323249,1771738232241,-13265.45878382,0.0001799,2]
[406323250,1771738232251,-18352.46,0.0001799,2]
[406323251,1771738232260,-1149.0,0.00017998,2]
[406323252,1771738232269,-288.0,0.00017998,2]
[406323253,1771738232278,-863.74690386,0.00017999,2]
[406323254,1771738232287,-863.74690386,0.00017999,2]
[406323255,1771738232296,-863.74690386,0.00017999,2]
[406323256,1771738232305,-863.74690386,0.00017999,2]
[406323257,1771738232314,-863.74690386,0.00017999,2]
[406323258,1771738232323,-863.74690386,0.00017999,2]
[406323259,1771738232333,-863.74690386,0.00017999,2]
[406323260,1771738232342,-863.74690386,0.00017999,2]
[406323261,1771738232351,-863.74690386,0.00017999,2]
[406323262,1771738232360,-863.74690386,0.00017999,2]
[406323263,1771738232370,-863.74690386,0.00017999,2]
[406323264,1771738232379,-863.74690386,0.00017999,2]
[406323265,1771738232388,-863.74690386,0.00017999,2]
[406323266,1771738232397,-863.74690386,0.00017999,2]
[406323267,1771738232407,-500.0,0.00017999,2]
[406323268,1771738232416,-863.74690386,0.00017999,2]
[406323269,1771738232425,-863.74690386,0.00017999,2]
[406323271,1771738232434,-500.0,0.00017999,2]
[406323272,1771738232443,-863.74690386,0.00017999,2]
[406323273,1771738232452,-500.0,0.00017999,2]
[406323274,1771738232461,-500.0,0.00017999,2]
[406323275,1771738232470,-500.0,0.00017999,2]
[406323276,1771738232479,-500.0,0.00017999,2]
[406323277,1771738232488,-863.74690386,0.00017999,2]
[406323278,1771738232497,-863.74690386,0.00017999,2]
[406323279,1771738232506,-500.0,0.00017999,2]
[406323280,1771738232515,-500.0,0.00017999,2]
[406323281,1771738232525,-500.0,0.00017999,2]
[406323282,1771738232534,-500.0,0.00017999,2]
[406323283,1771738232543,-500.0,0.00017999,2]
[406323284,1771738232552,-500.0,0.00017999,2]
[406323285,1771738232561,-500.0,0.00017999,2]
[406323286,1771738232571,-500.0,0.00017999,2]
[406323287,1771738232581,-500.0,0.00017999,2]
[406323288,1771738232591,-500.0,0.00017999,2]
[406323289,1771738232600,-500.0,0.00017999,2]
[406323290,1771738232610,-500.0,0.00017999,2]
[406323291,1771738232619,-500.0,0.00017999,2]
[406323292,1771738232627,-500.0,0.00017999,2]
[406323293,1771738232637,-500.0,0.00017999,2]
[406323294,1771738232651,-500.0,0.00017999,2]
[406323295,1771738232660,-500.0,0.00017999,2]
[406323296,1771738232669,-392.48723286,0.00017999,2]
[406323297,1771738232678,-500.0,0.00017999,2]
[406323298,1771738232689,-863.74690386,0.00017999,2]
[406323299,1771738232698,-500.0,0.00017999,2]
[406323300,1771738232707,-500.0,0.00017999,2]
[406323301,1771738232717,-500.0,0.00017999,2]
[406323302,1771738232727,-500.0,0.00017999,2]
[406323303,1771738232736,-500.0,0.00017999,2]
[406323304,1771738232745,-500.0,0.00017999,2]
[406323305,1771738232754,-500.0,0.00017999,2]
[406323306,1771738232763,-500.0,0.00017999,2]
[406323307,1771738232772,-500.0,0.00017999,2]
[406323308,1771738232781,-500.0,0.00017999,2]
[406323309,1771738232789,-500.0,0.00017999,2]
[406323310,1771738232798,-906.93424906,0.00017999,2]
[406323311,1771738232807,-906.93424906,0.00017999,2]
[406323312,1771738232816,-906.93424906,0.00017999,2]
[406323313,1771738232825,-906.93424906,0.00017999,2]
[406323314,1771738232834,-906.93424906,0.00017999,2]
[406323315,1771738232843,-906.93424906,0.00017999,2]
[406323316,1771738232852,-906.93424906,0.00017999,2]
[406323317,1771738232861,-906.93424906,0.00017999,2]
[406323318,1771738232870,-500.0,0.00017999,2]
[406323319,1771738232879,-489.24872329,0.00017999,2]
[406323320,1771738232888,-500.0,0.00017999,2]
[406323321,1771738232896,-500.0,0.00017999,2]
[406323322,1771738232909,-500.0,0.00017999,2]
[406323323,1771738232918,-500.0,0.00017999,2]
[406323324,1771738232927,-1911.80984339,0.00018,2]
[406323325,1771738232939,-255.51004428,0.00018,2]
[406323326,1771738232949,-11260.45347406,0.00018,2]
[406323327,1771738232960,-9412.5,0.00018,2]
[406323328,1771738232971,-995.88708944,0.00018,2]
[406323329,1771738232983,-6759.61690593,0.00018,2]
[406323334,1771738238201,-1503.20181405,0.00018,2]
[406323335,1771738238314,-828.73,0.00018,2]
[406323336,1771738238326,-118371.06480067,0.00018,2]
[406323340,1771738240599,-131343.70289952,0.00018,2]
[406323346,1771738243296,-3244.72416054,0.00018,2]
[406323394,1771738246205,-31434.94149265,0.00018,2]
[406323396,1771738246217,-5102.77501315,0.00018,2]
[406323399,1771738246228,-2223.74664,0.00018,2]
[406323403,1771738246261,-6844.22092503,0.00018,2]
[406323420,1771738246429,-13285.99682706,0.00018,2]
[406323422,1771738246440,-910.07126,0.00018,2]
[406323424,1771738246451,-1479.05832568,0.00018,2]
[406323433,1771738328431,4046.919288,7.945e-05,2]
[406323436,1771739431232,-515.0,0.00015101,2]
[406323437,1771739431242,-169.25253059,0.000179,2]
[406323438,1771739431254,-162.55640934,0.000179,2]
[406323439,1771739431264,-150.0,0.00017998,2]
[406323440,1771739431273,-1200.0,0.00017998,2]
[406323441,1771739431282,-500.0,0.00017999,2]
[406323442,1771739431291,-500.0,0.00017999,2]
[406323443,1771739431300,-1501.28,0.00017999,2]
[406323444,1771739431309,-618.44278317,0.00017999,2]
[406323445,1771739431318,-618.44278317,0.00017999,2]
[406323446,1771739431327,-618.44278317,0.00017999,2]
[406323447,1771739431337,-618.44278317,0.00017999,2]
[406323448,1771739431346,-618.44278317,0.00017999,2]
[406323449,1771739431355,-618.44278317,0.00017999,2]
[406323450,1771739431364,-618.44278317,0.00017999,2]
[406323451,1771739431374,-618.44278317,0.00017999,2]
[406323452,1771739431383,-618.44278317,0.00017999,2]
[406323453,1771739431393,-618.44278317,0.00017999,2]
[406323454,1771739431402,-618.44278317,0.00017999,2]
[406323455,1771739431411,-618.44278317,0.00017999,2]
[406323456,1771739431421,-618.44278317,0.00017999,2]
[406323457,1771739431430,-500.0,0.00017999,2]
[406323458,1771739431440,-500.0,0.00017999,2]
[406323459,1771739431451,-500.0,0.00017999,2]
[406323460,1771739431460,-500.0,0.00017999,2]
[406323461,1771739431469,-500.0,0.00017999,2]
[406323462,1771739431479,-500.0,0.00017999,2]
[406323463,1771739431488,-500.0,0.00017999,2]
[406323464,1771739431498,-500.0,0.00017999,2]
[406323465,1771739431507,-500.0,0.00017999,2]
[406323466,1771739431516,-500.0,0.00017999,2]
[406323467,1771739431525,-500.0,0.00017999,2]
[406323468,1771739431534,-500.0,0.00017999,2]
[406323469,1771739431544,-500.0,0.00017999,2]
[406323470,1771739431552,-500.0,0.00017999,2]
[406323471,1771739431562,-500.0,0.00017999,2]
[406323472,1771739431571,-500.0,0.00017999,2]
[406323473,1771739431580,-500.0,0.00017999,2]
[406323474,1771739431589,-500.0,0.00017999,2]
[406323475,1771739431598,-500.0,0.00017999,2]
[406323476,1771739431607,-500.0,0.00017999,2]
[406323477,1771739431616,-500.0,0.00017999,2]
[406323478,1771739431625,-500.0,0.00017999,2]
[406323479,1771739431634,-500.0,0.00017999,2]
[406323480,1771739431645,-500.0,0.00017999,2]
[406323481,1771739431654,-500.0,0.00017999,2]
[406323482,1771739431664,-500.0,0.00017999,2]
[406323483,1771739431673,-500.0,0.00017999,2]
[406323484,1771739431683,-500.0,0.00017999,2]
[406323485,1771739431692,-500.0,0.00017999,2]
[406323486,1771739431702,-500.0,0.00017999,2]
[406323487,1771739431711,-500.0,0.00017999,2]
[406323488,1771739431720,-500.0,0.00017999,2]
[406323489,1771739431729,-500.0,0.00017999,2]
[406323490,1771739431739,-500.0,0.00017999,2]
[406323491,1771739431747,-500.0,0.00017999,2]
[406323492,1771739431756,-500.0,0.00017999,2]
[406323493,1771739431765,-500.0,0.00017999,2]
[406323494,1771739431774,-500.0,0.00017999,2]
[406323495,1771739431783,-500.0,0.00017999,2]
[406323496,1771739431792,-500.0,0.00017999,2]
[406323497,1771739431801,-500.0,0.00017999,2]
[406323498,1771739431810,-461.99905236,0.00017999,2]
[406323499,1771739431819,-500.0,0.00017999,2]
[406323500,1771739431828,-500.0,0.00017999,2]
[406323501,1771739431837,-500.0,0.00017999,2]
[406323502,1771739431846,-500.0,0.00017999,2]
[406323503,1771739431854,-500.0,0.00017999,2]
[406323504,1771739431863,-500.0,0.00017999,2]
[406323505,1771739431872,-500.0,0.00017999,2]
[406323506,1771739431881,-500.0,0.00017999,2]
[406323507,1771739431890,-500.0,0.00017999,2]
[406323508,1771739431899,-500.0,0.00017999,2]
[406323509,1771739431908,-500.0,0.00017999,2]
[406323510,1771739431918,-500.0,0.00017999,2]
[406323511,1771739431927,-500.0,0.00017999,2]
[406323512,1771739431936,-500.0,0.00017999,2]
[406323513,1771739431945,-500.0,0.00017999,2]
[406323514,1771739431954,-500.0,0.00017999,2]
[406323515,1771739431963,-500.0,0.00017999,2]
[406323516,1771739431972,-500.0,0.00017999,2]
[406323517,1771739431981,-496.19990523,0.00017999,2]
[406323518,1771739431990,-500.0,0.00017999,2]
[406323519,1771739431999,-500.0,0.00017999,2]
[406323520,1771739432008,-500.0,0.00017999,2]
[406323521,1771739432018,-500.0,0.00017999,2]